[Event "ISR-ch Women 2018"]
[Site "Ma'alot-Tarshih"]
[Date "2018.12.16"]
[Round "5"]
[White "Reprun, Nadejda"]
[Black "Nesterovskaya, Anzhelika"]
[Result "1/2-1/2"]
[ECO "B70"]
[WhiteElo "2016"]
[BlackElo "2130"]
[Annotator "NA"]
[PlyCount "183"]
[EventDate "2018.12.11"]
[EventType "swiss"]
[EventCountry "ISR"]
[SourceTitle "playchess.com"]
[Source "ChessBase"]
[SourceQuality "1"]
[TimeControl "40/5400+30:1800+30"]

1. e4 {[%emt 0:01:48]} c5 {[%emt 0:00:00]} 2. Nf3 {[%emt 0:00:04]} d6 {[%emt 0:00:00]} 3. d4 {[%emt 0:00:05]} cxd4 {[%emt 0:00:04]} 4. Nxd4 {[%emt 0:00:05]} Nf6 {[%emt 0:00:04]} 5. Nc3 {[%emt 0:00:04]} g6 {[%emt 0:00:07]} 6. Be2 {[%emt 0:01:21]} Bg7 {[%emt 0:00:18]} 7. O-O {[%emt 0:00:06]} O-O {[%emt 0:00:43]} 8. Re1 {[%emt 0:00:11]} a6 {[%emt 0:00:36]} 9. Bf1 {[%emt 0:02:04]} b5 {[%emt 0:06:17]} 10. a4 {[%emt 0:11:15]} b4 {[%emt 0:01:13]} 11. Nd5 {[%emt 0:01:06]} Nxd5 {[%emt 0:02:15]} 12. exd5 {[%emt 0:00:04]} Bb7 {[%emt 0:00:38]} 13. Nb3 {[%emt 0:09:35]} Nd7 {[%emt 0:02:09]} 14. Bg5 {[%emt 0:15:31]} Re8 {[%emt 0:01:45]} 15. Ra2 {[%emt 0:07:04]} Nb6 {[%emt 0:04:28]} 16. Qd2 {[%emt 0:01:18]} Qc7 {[%emt 0:10:21]} 17. Qxb4 {[%emt 0:03:39]} Nxd5 {[%emt 0:03:32]} 18. Qd2 {[%emt 0:00:31]} f6 {[%emt 0:11:10]} 19. Bh4 {[%emt 0:07:11]} a5 {[%emt 0:11:49]} 20. Bb5 {[%emt 0:14:52]} Rec8 {[%emt 0:01:42]} 21. c4 {[%emt 0:01:12]} Nb4 {[%emt 0:01:39]} 22. Raa1 {[%emt 0:00:06]} e5 {[%emt 0:01:05]} 23. Rad1 {[%emt 0:01:19]} d5 {[%emt 0:14:10]} 24. cxd5 {[%emt 0:01:51]} Bxd5 {[%emt 0:00:18]} 25. Rc1 {[%emt 0:02:39]} Qb6 {[%emt 0:00:26]} 26. Rc3 {[%emt 0:00:33]} Rd8 {[%emt 0:07:42]} 27. Qe2 {[%emt 0:01:59]} Na2 {[%emt 0:01:40]} 28. Rd3 {[%emt 0:00:19]} Nb4 {[%emt 0:03:02]} 29. Rc3 {[%emt 0:00:08]} Kh8 {[%emt 0:01:02]} 30. Nd2 {[%emt 0:04:42]} Qd4 {[%emt 0:02:00]} 31. Bg3 {[%emt 0:01:37]} Bxg2 {[%emt 0:01:25]} 32. Nb3 {[%emt 0:01:11]} Qd5 {[%emt 0:00:10]} 33. Bc4 {[%emt 0:01:03]} Qc6 {[%emt 0:01:40]} 34. Bb5 {[%emt 0:00:06]} Qb7 {[%emt 0:00:10]} 35. f3 {[%emt 0:04:12]} Bh3 {[%emt 0:00:10]} 36. Bf2 {[%emt 0:00:10]} Nd5 {[%emt 0:03:17]} 37. Rc6 {[%emt 0:02:17]} Nf4 {[%emt 0:00:32]} 38. Qc4 {[%emt 0:01:07]} Bf5 {[%emt 0:05:10]} 39. Nc5 {[%emt 0:01:04]} Qa7 {[%emt 0:01:37]} 40. Ne4 {[%emt 0:01:01]} Nh3+ {[%emt 0:00:06]} 41. Kg2 {[%emt 0:30:11]} Nxf2 {[%emt 0:30:10]} 42. Nxf2 {[%emt 0:00:07]} Rd2 {[%emt 0:00:28]} 43. Re2 {[%emt 0:01:09]} Rxe2 {[%emt 0:00:01]} 44. Qxe2 {[%emt 0:00:07]} Qd4 {[%emt 0:00:19]} 45. Ne4 {[%emt 0:01:16]} Qd8 {[%emt 0:00:51]} 46. Nd6 {[%emt 0:03:02]} Be6 {[%emt 0:01:24]} 47. Qc2 {[%emt 0:00:00]} Bf8 {[%emt 0:00:00]} 48. Ne4 {[%emt 0:00:00]} Bf5 {[%emt 0:00:00]} 49. Bd3 {[%emt 0:00:00]} Be7 {[%emt 0:00:00]} 50. b3 {[%emt 0:00:00]} Rc8 {[%emt 0:00:00]} 51. Ba6 {[%emt 0:00:00]} Rxc6 {[%emt 0:00:00]} 52. Qxc6 {[%emt 0:00:00]} Bd7 {[%emt 0:00:00]} 53. Qc4 {[%emt 0:00:00]} f5 {[%emt 0:00:00]} 54. Nc3 {[%emt 0:00:00]} Bb4 {[%emt 0:00:00]} 55. Ne2 {[%emt 0:00:00]} Qg5+ {[%emt 0:00:00]} 56. Kf1 {[%emt 0:00:00]} f4 {[%emt 0:00:00]} 57. Bc8 {[%emt 0:00:00]} Qf5 {[%emt 0:00:00]} 58. Bxd7 {[%emt 0:00:00]} Qxd7 {[%emt 0:00:00]} 59. Kg2 {[%emt 0:00:00]} Kg7 {[%emt 0:00:00]} 60. Nc1 {[%emt 0:00:00]} Qd2+ {[%emt 0:00:00]} 61. Ne2 {[%emt 0:00:00]} Qd8 {[%emt 0:00:00]} 62. Qe6 {[%emt 0:01:20]} Qg5+ {[%emt 0:00:00]} 63. Kf1 {[%emt 0:00:20]} Qf5 {[%emt 0:00:00]} 64. Qxf5 {[%emt 0:01:30]} gxf5 {[%emt 0:00:00]} 65. Nc1 {[%emt 0:00:03]} e4 {[%emt 0:00:00]} 66. Na2 {[%emt 0:00:38]} Bd6 {[%emt 0:01:00]} 67. Nc3 {[%emt 0:01:11]} e3 {[%emt 0:00:12]} 68. Nb5 {[%emt 0:01:38]} Be5 {[%emt 0:03:58]} 69. Ke2 {[%emt 0:00:14]} Kf6 {[%emt 0:00:27]} 70. Kd3 {[%emt 0:00:49]} Kg5 {[%emt 0:01:35]} 71. Na7 {[%emt 0:00:17]} Kh4 {[%emt 0:01:07]} 72. Nc6 {[%emt 0:00:07]} Bc7 {[%emt 0:00:11]} 73. b4 {[%emt 0:01:07]} axb4 {[%emt 0:00:05]} 74. Nxb4 {[%emt 0:00:04]} Kh3 {[%emt 0:00:39]} 75. Nd5 {[%emt 0:00:16]} Bb8 {[%emt 0:00:53]} 76. Ne7 {[%emt 0:01:55]} Kxh2 {[%emt 0:00:51]} 77. a5 {[%emt 0:00:17]} Kg2 {[%emt 0:01:20]} 78. Ke2 {[%emt 0:00:09]} h5 {[%emt 0:01:07]} 79. Nxf5 {[%emt 0:01:47]} Kh3 {[%emt 0:01:31]} 80. Kf1 {[%emt 0:00:23]} Ba7 {[%emt 0:00:21]} 81. a6 {[%emt 0:00:38]} Bb8 {[%emt 0:00:47]} 82. Ke2 {[%emt 0:00:05]} Kg2 {[%emt 0:00:25]} 83. Nh4+ {[%emt 0:00:09]} Kh3 {[%emt 0:00:30]} 84. Nf5 {[%emt 0:00:01]} h4 {[%emt 0:00:27]} 85. Kf1 {[%emt 0:03:00]} Ba7 {[%emt 0:00:11]} 86. Ke2 {[%emt 0:00:01]} Bb8 {[%emt 0:00:11]} 87. Kf1 {[%emt 0:00:01]} Ba7 {[%emt 0:00:05]} 88. Ke2 {[%emt 0:00:16]} Bb8 {[%emt 0:00:04]} 89. Kf1 {[%emt 0:00:24]} Kh2 {[%emt 0:06:48]} 90. Ne7 {[%emt 0:03:58]} h3 {[%emt 0:00:30]} 91. Nc6 {[%emt 0:00:30]} Kg3 {[%emt 0:00:30]} 92. Nxb8 {[%emt 0:00:30]} 1/2-1/2

[Event "ISR-ch Women 2018"]
[Site "Ma'alot-Tarshih"]
[Date "2018.12.16"]
[Round "5"]
[White "Vardi, Shlomit"]
[Black "Haitovich, Avital"]
[Result "0-1"]
[ECO "B30"]
[WhiteElo "1910"]
[BlackElo "1979"]
[Annotator "NA"]
[PlyCount "82"]
[EventDate "2018.12.11"]
[EventType "swiss"]
[EventCountry "ISR"]
[SourceTitle "playchess.com"]
[Source "ChessBase"]
[SourceQuality "1"]
[TimeControl "40/5400+30:1800+30"]

1. e4 {[%emt 0:00:00]} c5 {[%emt 0:00:00]} 2. Nc3 {[%emt 0:00:00]} Nc6 {[%emt 0:00:00]} 3. Bb5 {[%emt 0:00:00]} Nd4 {[%emt 0:00:00]} 4. Nf3 {[%emt 0:00:00]} e6 {[%emt 0:00:00]} 5. O-O {[%emt 0:00:55]} a6 {[%emt 0:00:07]} 6. Bd3 {[%emt 0:00:13]} Nc6 {[%emt 0:00:19]} 7. Re1 {[%emt 0:02:20]} d6 {[%emt 0:00:43]} 8. Bf1 {[%emt 0:05:08]} Qc7 {[%emt 0:01:17]} 9. d4 {[%emt 0:02:18]} cxd4 {[%emt 0:01:08]} 10. Nxd4 {[%emt 0:00:04]} Nf6 {[%emt 0:01:57]} 11. Be3 {[%emt 0:04:44]} Be7 {[%emt 0:08:31]} 12. f3 {[%emt 0:12:55]} O-O {[%emt 0:02:32]} 13. Nxc6 {[%emt 0:05:23]} Qxc6 {[%emt 0:01:49]} 14. a4 {[%emt 0:00:48]} b6 {[%emt 0:05:56]} 15. Qd4 {[%emt 0:05:32]} Rb8 {[%emt 0:05:01]} 16. Kh1 {[%emt 0:04:17]} Rd8 {[%emt 0:06:57]} 17. Bc4 {[%emt 0:12:55]} d5 {[%emt 0:29:41]} 18. exd5 {[%emt 0:00:16]} exd5 {[%emt 0:00:19]} 19. Qe5 {[%emt 0:10:03]} Bd6 {[%emt 0:08:16]} 20. Bxd5 {[%emt 0:02:07]} Qc7 {[%emt 0:01:35]} 21. Qg5 {[%emt 0:07:55]} Bxh2 {[%emt 0:02:59]} 22. f4 {[%emt 0:10:24]} h6 {[%emt 0:03:37]} 23. Qh4 {[%emt 0:00:39]} Nxd5 {[%emt 0:01:00]} 24. Nxd5 {[%emt 0:01:47]} Rxd5 {[%emt 0:00:23]} 25. Qxh2 {[%emt 0:01:15]} Qxc2 {[%emt 0:05:59]} 26. f5 {[%emt 0:01:40]} Ra8 {[%emt 0:00:38]} 27. f6 {[%emt 0:05:15]} Bb7 {[%emt 0:04:48]} 28. Qg3 {[%emt 0:01:06]} g6 {[%emt 0:02:47]} 29. Rac1 {[%emt 0:01:51]} Qxb2 {[%emt 0:02:52]} 30. Rc7 {[%emt 0:00:14]} Rh5+ {[%emt 0:00:17]} 31. Kg1 {[%emt 0:00:11]} Bd5 {[%emt 0:00:02]} 32. Rd1 {[%emt 0:01:06]} Re8 {[%emt 0:02:07]} 33. Re7 {[%emt 0:01:47]} Rc8 {[%emt 0:00:19]} 34. Qg4 {[%emt 0:01:14]} Rc2 {[%emt 0:02:14]} 35. Rxd5 {[%emt 0:00:30]} Rxd5 {[%emt 0:00:02]} 36. Re8+ {[%emt 0:00:31]} Kh7 {[%emt 0:00:03]} 37. Re7 {[%emt 0:00:06]} Qa1+ {[%emt 0:01:15]} 38. Kh2 {[%emt 0:00:14]} Rh5+ {[%emt 0:00:57]} 39. Kg3 {[%emt 0:00:08]} Qe1+ {[%emt 0:00:07]} 40. Kf3 {[%emt 0:00:46]} Qf1+ {[%emt 0:00:42]} 41. Ke4 {[%emt 0:30:50]} Rc4+ {[%emt 0:02:36] Kd4 [%clk 0:00:00]} 0-1

[Event "ISR-ch Women 2018"]
[Site "Ma'alot-Tarshih"]
[Date "2018.12.16"]
[Round "5"]
[White "Katkov, Michelle"]
[Black "Buzukashvili, Sofia"]
[Result "1-0"]
[ECO "B22"]
[WhiteElo "1887"]
[BlackElo "1963"]
[Annotator "NA"]
[PlyCount "83"]
[EventDate "2018.12.11"]
[EventType "swiss"]
[EventCountry "ISR"]
[SourceTitle "playchess.com"]
[Source "ChessBase"]
[SourceQuality "1"]
[TimeControl "40/5400+30:1800+30"]

1. e4 {[%emt 0:00:00]} c5 {[%emt 0:00:00]} 2. c3 {[%emt 0:00:00]} d5 {[%emt 0:00:00]} 3. exd5 {[%emt 0:00:00]} Qxd5 {[%emt 0:00:00]} 4. d4 {[%emt 0:00:00]} Nf6 {[%emt 0:00:00]} 5. Nf3 {[%emt 0:00:19]} e6 {[%emt 0:00:31]} 6. Be3 {[%emt 0:00:08]} cxd4 {[%emt 0:00:45]} 7. cxd4 {[%emt 0:00:51]} Nc6 {[%emt 0:00:26]} 8. Nc3 {[%emt 0:00:37]} Qd6 {[%emt 0:00:34]} 9. Bd3 {[%emt 0:01:46]} Be7 {[%emt 0:00:22]} 10. O-O {[%emt 0:00:51]} O-O {[%emt 0:00:17]} 11. Rc1 {[%emt 0:01:30]} b6 {[%emt 0:05:02]} 12. a3 {[%emt 0:05:38]} Bb7 {[%emt 0:00:52]} 13. Bb1 {[%emt 0:03:54]} Rac8 {[%emt 0:04:18]} 14. Qd3 {[%emt 0:06:21]} g6 {[%emt 0:04:51]} 15. Rfe1 {[%emt 0:02:43]} Rfd8 {[%emt 0:05:46]} 16. Rcd1 {[%emt 0:02:27]} Nd5 {[%emt 0:03:46]} 17. Ba2 {[%emt 0:00:41]} Nxc3 {[%emt 0:02:22]} 18. bxc3 {[%emt 0:11:10]} Qxa3 {[%emt 0:01:21]} 19. Rd2 {[%emt 0:05:55]} Ba6 {[%emt 0:01:32]} 20. Qe4 {[%emt 0:03:39]} Qd6 {[%emt 0:35:56]} 21. Bf4 {[%emt 0:02:19]} Qd7 {[%emt 0:02:17]} 22. d5 {[%emt 0:06:30]} exd5 {[%emt 0:05:06]} 23. Bxd5 {[%emt 0:01:49]} Qf5 {[%emt 0:10:07]} 24. Qxf5 {[%emt 0:02:15]} gxf5 {[%emt 0:00:05]} 25. Bxc6 {[%emt 0:00:05]} Bf6 {[%emt 0:01:58]} 26. Rxd8+ {[%emt 0:00:38]} Rxd8 {[%emt 0:00:05]} 27. Be5 {[%emt 0:02:30]} Bxe5 {[%emt 0:01:20]} 28. Nxe5 {[%emt 0:00:34]} Rc8 {[%emt 0:01:12]} 29. Ra1 {[%emt 0:04:49]} f6 {[%emt 0:04:48]} 30. Bd5+ {[%emt 0:00:35]} Kg7 {[%emt 0:00:35]} 31. Rxa6 {[%emt 0:00:46]} fxe5 {[%emt 0:00:51]} 32. Rxa7+ {[%emt 0:00:06]} Kg6 {[%emt 0:03:26]} 33. Ra6 {[%emt 0:03:14]} Rxc3 {[%emt 0:01:09]} 34. Rxb6+ {[%emt 0:00:04]} Kg5 {[%emt 0:00:16]} 35. g3 {[%emt 0:01:51]} Rd3 {[%emt 0:00:45]} 36. Bg8 {[%emt 0:01:40]} Rd7 {[%emt 0:00:34]} 37. h4+ {[%emt 0:01:50]} Kh5 {[%emt 0:01:37]} 38. Rf6 {[%emt 0:02:53]} Rg7 {[%emt 0:02:03]} 39. Rxf5+ {[%emt 0:00:14]} Kg6 {[%emt 0:00:37]} 40. Rg5+ {[%emt 0:00:11]} Kh6 {[%emt 0:00:21]} 41. Rxg7 {[%emt 0:31:07]} Kxg7 {[%emt 0:30:06]} 42. Bxh7 {[%emt 0:02:13]} 1-0

[Event "ISR-ch Women 2018"]
[Site "Ma'alot-Tarshih"]
[Date "2018.12.16"]
[Round "5"]
[White "Brusilovski, Lena"]
[Black "Orian, Noga"]
[Result "0-1"]
[ECO "B94"]
[WhiteElo "1886"]
[BlackElo "1343"]
[Annotator "NA"]
[PlyCount "124"]
[EventDate "2018.12.11"]
[EventType "swiss"]
[EventCountry "ISR"]
[SourceTitle "playchess.com"]
[Source "ChessBase"]
[SourceQuality "1"]
[TimeControl "40/5400+30:1800+30"]

1. e4 {[%emt 0:00:00]} c5 {[%emt 0:00:00]} 2. Nf3 {[%emt 0:00:59]} d6 {[%emt 0:00:00]} 3. d4 {[%emt 0:01:30]} cxd4 {[%emt 0:00:00]} 4. Nxd4 {[%emt 0:00:24]} Nf6 {[%emt 0:00:00]} 5. Nc3 {[%emt 0:00:44]} a6 {[%emt 0:00:00]} 6. Bg5 {[%emt 0:01:15]} Nbd7 {[%emt 0:00:11]} 7. f4 {[%emt 0:01:19]} Qb6 {[%emt 0:00:23]} 8. Nb3 {[%emt 0:03:40]} h6 {[%emt 0:00:08]} 9. Bxf6 {[%emt 0:01:02]} Nxf6 {[%emt 0:00:09]} 10. Qd4 {[%emt 0:00:36]} Qxd4 {[%emt 0:01:06]} 11. Nxd4 {[%emt 0:00:36]} g6 {[%emt 0:01:07]} 12. O-O-O {[%emt 0:00:45]} Bg7 {[%emt 0:00:46]} 13. Be2 {[%emt 0:01:56]} Bg4 {[%emt 0:01:22]} 14. Nf3 {[%emt 0:00:57]} Bd7 {[%emt 0:22:31]} 15. Rhg1 {[%emt 0:09:33]} Bc6 {[%emt 0:06:34]} 16. Bd3 {[%emt 0:02:00]} Nd7 {[%emt 0:11:36]} 17. Nd5 {[%emt 0:03:33]} Rc8 {[%emt 0:04:38]} 18. c3 {[%emt 0:01:31]} Nf6 {[%emt 0:08:11]} 19. Nb6 {[%emt 0:02:33]} Rc7 {[%emt 0:04:04]} 20. e5 {[%emt 0:04:09]} dxe5 {[%emt 0:01:02]} 21. fxe5 {[%emt 0:00:28]} Nd7 {[%emt 0:04:30]} 22. Nxd7 {[%emt 0:01:21]} Bxd7 {[%emt 0:00:03]} 23. Rge1 {[%emt 0:01:29]} e6 {[%emt 0:00:34]} 24. Be4 {[%emt 0:04:25]} Bc6 {[%emt 0:01:32]} 25. Nd4 {[%emt 0:07:53]} Bxe4 {[%emt 0:00:46]} 26. Rxe4 {[%emt 0:00:08]} Ke7 {[%emt 0:00:58]} 27. Nb3 {[%emt 0:01:03]} Rd8 {[%emt 0:00:55]} 28. Rxd8 {[%emt 0:02:52]} Kxd8 {[%emt 0:00:02]} 29. Kd2 {[%emt 0:00:35]} Rd7+ {[%emt 0:02:00]} 30. Ke3 {[%emt 0:01:11]} Rd5 {[%emt 0:02:52]} 31. h3 {[%emt 0:08:11]} Rxe5 {[%emt 0:01:14]} 32. Rxe5 {[%emt 0:02:13]} Bxe5 {[%emt 0:00:02]} 33. Nc5 {[%emt 0:00:48]} Kc7 {[%emt 0:00:27]} 34. Ke4 {[%emt 0:00:41]} Bf6 {[%emt 0:00:42]} 35. g4 {[%emt 0:01:31]} Kc6 {[%emt 0:00:29]} 36. Nd3 {[%emt 0:02:07]} b5 {[%emt 0:02:09]} 37. h4 {[%emt 0:04:14]} Kd6 {[%emt 0:03:46]} 38. h5 {[%emt 0:02:05]} gxh5 {[%emt 0:03:13]} 39. gxh5 {[%emt 0:00:25]} Bg5 {[%emt 0:00:38]} 40. b3 {[%emt 0:01:21]} f5+ {[%emt 0:01:16]} 41. Kf3 {[%emt 0:30:18]} e5 {[%emt 0:30:50]} 42. Nf2 {[%emt 0:00:37]} Kd5 {[%emt 0:00:46]} 43. Ke2 {[%emt 0:00:59]} Bh4 {[%emt 0:08:59]} 44. Nd3 {[%emt 0:01:20]} a5 {[%emt 0:00:14]} 45. c4+ {[%emt 0:00:51]} bxc4 {[%emt 0:00:55]} 46. bxc4+ {[%emt 0:00:03]} Kd4 {[%emt 0:00:17]} 47. c5 {[%emt 0:00:26]} e4 {[%emt 0:01:14]} 48. Nf4 {[%emt 0:25:23]} Kxc5 {[%emt 0:00:32]} 49. Ne6+ {[%emt 0:00:00]} Kb4 {[%emt 0:02:00]} 50. Nd4 {[%emt 0:00:00]} f4 {[%emt 0:00:54]} 51. Nc6+ {[%emt 0:00:00]} Ka4 {[%emt 0:00:24]} 52. Nd4 {[%emt 0:00:00]} Ka3 {[%emt 0:01:12]} 53. Nf5 {[%emt 0:00:00]} Bg5 {[%emt 0:00:27]} 54. Nd6 {[%emt 0:00:00]} f3+ {[%emt 0:03:06]} 55. Kf2 {[%emt 0:00:00]} Bh4+ {[%emt 0:00:48]} 56. Ke3 {[%emt 0:00:00]} f2 {[%emt 0:00:46]} 57. Ke2 {[%emt 0:00:00]} Kxa2 {[%emt 0:00:43]} 58. Nxe4 {[%emt 0:00:00]} Kb3 {[%emt 0:00:39]} 59. Nd2+ {[%emt 0:00:00]} Kb4 {[%emt 0:00:31]} 60. Nf3 {[%emt 0:00:00]} Bg3 {[%emt 0:00:25]} 61. Nd4 {[%emt 0:00:00]} a4 {[%emt 0:00:48]} 62. Nf5 {[%emt 0:00:00]} a3 {[%emt 0:00:54]} 0-1

[Event "ISR-ch Women 2018"]
[Site "Ma'alot-Tarshih"]
[Date "2018.12.16"]
[Round "5"]
[White "Shaul Zeidner, Lyad"]
[Black "Levitan, Ronit"]
[Result "1-0"]
[ECO "C30"]
[WhiteElo "1671"]
[BlackElo "1875"]
[Annotator "NA"]
[PlyCount "145"]
[EventDate "2018.12.11"]
[EventType "swiss"]
[EventCountry "ISR"]
[SourceTitle "playchess.com"]
[Source "ChessBase"]
[SourceQuality "1"]
[TimeControl "40/5400+30:1800+30"]

1. e4 {[%emt 0:00:00]} e5 {[%emt 0:00:00]} 2. Bc4 {[%emt 0:00:00]} Nf6 {[%emt 0:00:29]} 3. d3 {[%emt 0:00:05]} Bc5 {[%emt 0:00:29]} 4. Nc3 {[%emt 0:00:40]} Nc6 {[%emt 0:00:31]} 5. f4 {[%emt 0:01:24]} d6 {[%emt 0:00:09]} 6. Nf3 {[%emt 0:01:01]} Bg4 {[%emt 0:00:41]} 7. Na4 {[%emt 0:10:21]} Bb6 {[%emt 0:00:07]} 8. Nxb6 {[%emt 0:00:23]} axb6 {[%emt 0:00:05]} 9. c3 {[%emt 0:00:11]} Na5 {[%emt 0:01:57]} 10. Bb5+ {[%emt 0:03:14]} c6 {[%emt 0:00:33]} 11. Ba4 {[%emt 0:00:20]} Bxf3 {[%emt 0:25:19]} 12. Qxf3 {[%emt 0:03:43]} exf4 {[%emt 0:08:00]} 13. Bxf4 {[%emt 0:03:51]} O-O {[%emt 0:06:43]} 14. Bc2 {[%emt 0:01:42]} c5 {[%emt 0:01:56]} 15. O-O {[%emt 0:01:56]} Qd7 {[%emt 0:01:17]} 16. Bg5 {[%emt 0:19:48]} Ne8 {[%emt 0:04:41]} 17. Qg3 {[%emt 0:05:59]} f6 {[%emt 0:04:38]} 18. Bd2 {[%emt 0:03:24]} Nc6 {[%emt 0:01:02]} 19. Bd1 {[%emt 0:01:05]} Nc7 {[%emt 0:01:37]} 20. Bf4 {[%emt 0:02:24]} Rfd8 {[%emt 0:02:03]} 21. Bg4 {[%emt 0:03:59]} Qe7 {[%emt 0:01:54]} 22. Rf2 {[%emt 0:09:49]} Ne5 {[%emt 0:01:58]} 23. Bf5 {[%emt 0:01:37]} Ne6 {[%emt 0:07:55]} 24. Qh3 {[%emt 0:02:57]} Nf8 {[%emt 0:00:07]} 25. d4 {[%emt 0:05:44]} Neg6 {[%emt 0:05:56]} 26. Bd2 {[%emt 0:05:18]} d5 {[%emt 0:08:17]} 27. Re1 {[%emt 0:09:18]} dxe4 {[%emt 0:00:52]} 28. Rxe4 {[%emt 0:01:25]} Qf7 {[%emt 0:03:10]} 29. a3 {[%emt 0:02:52]} Ra6 {[%emt 0:12:04]} 30. Be3 {[%emt 0:00:30]} Qc7 {[%emt 0:00:30]} 31. Be6+ {[%emt 0:00:00]} Kh8 {[%emt 0:00:00]} 32. Bc4 {[%emt 0:00:00]} Raa8 {[%emt 0:01:00]} 33. d5 {[%emt 0:00:00]} Re8 {[%emt 0:00:00]} 34. Rxe8 {[%emt 0:00:18]} Rxe8 {[%emt 0:00:00]} 35. Bd2 {[%emt 0:00:03]} Rd8 {[%emt 0:00:00]} 36. Re2 {[%emt 0:01:16]} b5 {[%emt 0:00:00]} 37. Bxb5 {[%emt 0:00:11]} Rxd5 {[%emt 0:00:00]} 38. Qf3 {[%emt 0:00:37]} Rd8 {[%emt 0:00:00]} 39. Qf2 {[%emt 0:00:41]} Qd6 {[%emt 0:01:03]} 40. Qe1 {[%emt 0:00:24]} c4 41. Be3 {[%emt 0:32:00]} Ne5 {[%emt 0:03:49]} 42. Rd2 {[%emt 0:00:30]} Qc7 {[%emt 0:10:19]} 43. Rxd8 {[%emt 0:00:00]} Qxd8 {[%emt 0:00:02]} 44. Qd2 {[%emt 0:00:00]} Qc7 {[%emt 0:20:47]} 45. a4 {[%emt 0:00:00]} h6 {[%emt 0:00:00]} 46. Bf4 {[%emt 0:00:00]} Nfg6 {[%emt 0:00:00]} 47. Bg3 {[%emt 0:00:00]} Qb6+ {[%emt 0:00:00]} 48. Qd4 {[%emt 0:00:00]} Qe6 {[%emt 0:00:00]} 49. h3 {[%emt 0:00:00]} Kh7 {[%emt 0:00:00]} 50. Kh2 {[%emt 0:00:00]} Kh8 {[%emt 0:00:00]} 51. Kg1 {[%emt 0:00:00]} h5 {[%emt 0:00:00]} 52. Kh2 {[%emt 0:00:00]} b6 {[%emt 0:00:00]} 53. Bf2 {[%emt 0:00:00]} Nd3 {[%emt 0:02:54]} 54. Bxc4 {[%emt 0:00:00]} Qe5+ {[%emt 0:01:17]} 55. Qxe5 {[%emt 0:00:00]} Ndxe5 {[%emt 0:00:29]} 56. Bb5 {[%emt 0:00:00]} Ne7 {[%emt 0:00:25]} 57. Bxb6 {[%emt 0:00:00]} Nd5 {[%emt 0:00:25]} 58. a5 {[%emt 0:00:00]} Kh7 {[%emt 0:00:48]} 59. Bd4 {[%emt 0:00:00]} Nc7 {[%emt 0:00:18]} 60. Bxe5 {[%emt 0:00:00]} Nxb5 {[%emt 0:00:15]} 61. Bd4 {[%emt 0:00:00]} Nc7 {[%emt 0:00:08]} 62. b4 {[%emt 0:00:00]} Kg6 {[%emt 0:00:04]} 63. Kg3 {[%emt 0:00:00]} Kf5 {[%emt 0:00:06]} 64. Kf3 {[%emt 0:00:00]} g5 {[%emt 0:00:06]} 65. g4+ {[%emt 0:00:00]} hxg4+ {[%emt 0:00:06]} 66. hxg4+ {[%emt 0:00:00]} Ke6 {[%emt 0:00:06]} 67. c4 {[%emt 0:00:00]} f5 {[%emt 0:01:04]} 68. b5 {[%emt 0:00:00]} fxg4+ {[%emt 0:01:07]} 69. Kxg4 {[%emt 0:00:00]} Kd7 {[%emt 0:00:06]} 70. a6 {[%emt 0:00:00]} Kc8 {[%emt 0:00:20]} 71. Bg1 {[%emt 0:00:00]} Ne6 {[%emt 0:01:36]} 72. b6 {[%emt 0:00:00]} Nf8 {[%emt 0:01:20]} 73. b7+ {[%emt 0:00:00]} 1-0

[Event "ISR-ch Women 2018"]
[Site "Ma'alot-Tarshih"]
[Date "2018.12.17"]
[Round "6"]
[White "Efroimski, Marsel"]
[Black "Klinova, Masha"]
[Result "1-0"]
[ECO "B09"]
[WhiteElo "2301"]
[BlackElo "2267"]
[Annotator "NA"]
[PlyCount "105"]
[EventDate "2018.12.12"]
[EventType "swiss"]
[EventCountry "ISR"]
[SourceTitle "playchess.com"]
[Source "ChessBase"]
[SourceQuality "1"]
[TimeControl "40/5400+30:1800+30"]

1. e4 {[%emt 0:01:59]} d6 {[%emt 0:00:00]} 2. d4 {[%emt 0:00:09]} Nf6 {[%emt 0:00:00]} 3. Nc3 {[%emt 0:00:04]} g6 {[%emt 0:00:00]} 4. f4 {[%emt 0:00:06]} Bg7 {[%emt 0:00:00]} 5. Nf3 {[%emt 0:00:04]} c5 {[%emt 0:00:00]} 6. Bb5+ {[%emt 0:02:46]} Bd7 {[%emt 0:01:47]} 7. Bxd7+ {[%emt 0:05:56]} Qxd7 {[%emt 0:01:58] B09: Pirc Defence: Austrian Attack} (7... Nbxd7 8. d5 O-O 9. O-O b5 10. Qe1 b4 11. Nd1 Re8 12. e5 Nxd5 13. e6 Nf8 14. exf7+ Kxf7 15. Ng5+ Kg8 {0-1 (49) Piorun,K (2633)-Duda,J (2724) Brest 2018}) 8. dxc5 {[%emt 0:05:12]} dxc5 {[%emt 0:05:22]} 9. Qxd7+ {[%emt 0:09:35]} Nfxd7 {[%emt 0:07:43] LiveBook: 4 Games} 10. Nd5 {[%emt 0:08:29]} (10. Nb5 $5 {[%cal Rb5c7]} Na6 11. c3 $11) 10... Na6 {[%emt 0:02:12]} 11. Bd2 {[%emt 0:01:53]} e6 {[%emt 0:08:37]} 12. Bc3 {[%emt 0:01:23]} Bxc3+ $146 {[%emt 0:32:55]} ({Black should try Predecessor:} 12... exd5 $15 13. Bxg7 Rg8 14. Bc3 dxe4 15. Ng5 {0-1 (32) Weiner,O-Blodig,R Tirschenreuth 1982}) 13. Nxc3 {[%emt 0:00:12]} Ke7 {[%emt 0:00:22]} 14. O-O-O {[%emt 0:04:39]} Rhd8 {[%emt 0:03:40]} 15. Rd2 {[%emt 0:07:46]} Nb6 {[%emt 0:05:43]} 16. Rf2 {[%emt 0:07:41]} f6 $16 {[%emt 0:05:46]} (16... Nb4 $14) 17. Rhf1 {[%emt 0:06:03]} Nb4 {[%emt 0:00:56]} 18. g4 {[%emt 0:06:06]} Nc4 {[%emt 0:02:26]} 19. Re1 {[%emt 0:03:17]} Nc6 {[%emt 0:02:07]} 20. b3 {[%emt 0:09:38]} Nb6 {[%emt 0:01:06]} 21. f5 {[%emt 0:02:27]} e5 {[%emt 0:06:35]} 22. fxg6 {[%emt 0:03:49]} hxg6 {[%emt 0:00:05]} 23. Nh4 {[%emt 0:02:29]} Rg8 {[%emt 0:05:00]} 24. Ref1 {[%emt 0:00:16]} g5 {[%emt 0:03:26]} 25. Nf5+ {[%emt 0:01:06]} Ke6 {[%emt 0:00:05]} 26. Ne3 {[%emt 0:03:37]} Raf8 {[%emt 0:00:07]} 27. Ncd5 {[%emt 0:01:19]} Nd7 {[%emt 0:02:31]} 28. Rd1 {[%emt 0:02:14]} Rc8 {[%emt 0:00:44]} 29. a4 {[%emt 0:03:28]} a6 {[%emt 0:02:14]} 30. Nf5 {[%emt 0:00:18]} Nd4 {[%emt 0:00:41]} 31. Nfe7 {[%emt 0:00:15]} Rh8 {[%emt 0:00:10]} 32. Nxc8 {[%emt 0:00:17]} Rxc8 {[%emt 0:00:05]} 33. Rdf1 {[%emt 0:01:13]} Rf8 {[%emt 0:00:11]} 34. Kb2 {[%emt 0:00:17]} Nc6 {[%emt 0:00:46]} 35. c3 {[%emt 0:00:40]} Ne7 {[%emt 0:00:08]} 36. Nxe7 {[%emt 0:00:29]} Kxe7 {[%emt 0:00:03]} 37. Rd1 {[%emt 0:00:27]} Rc8 {[%emt 0:00:16]} 38. h4 {[%emt 0:00:36]} gxh4 {[%emt 0:00:08]} 39. Rh2 {[%emt 0:00:30]} Rg8 {[%emt 0:00:29]} 40. Rxh4 {[%emt 0:00:07]} Rg7 {[%emt 0:00:06]} 41. Rd5 {[%emt 0:07:07]} b6 {[%emt 0:01:40]} 42. a5 {[%emt 0:05:40]} bxa5 {[%emt 0:01:18]} 43. Rh8 {[%emt 0:00:32]} a4 {[%emt 0:01:41]} 44. Ra8 {[%emt 0:01:11]} axb3 {[%emt 0:00:27]} 45. Kxb3 {[%emt 0:04:28]} c4+ {[%emt 0:02:54]} 46. Kb4 {[%emt 0:01:02]} Rxg4 {[%emt 0:00:41]} 47. Ra7 {[%emt 0:00:07]} Rxe4 {[%emt 0:00:04]} 48. Raxd7+ {[%emt 0:00:32]} Ke6 {[%emt 0:00:07]} 49. R5d6+ {[%emt 0:00:06]} Kf5 {[%emt 0:00:07]} 50. Rf7 {[%emt 0:00:07]} Kf4 {[%emt 0:00:42]} 51. Rfxf6+ {[%emt 0:01:05]} Ke3 {[%emt 0:00:07]} 52. Rxa6 {[%emt 0:00:13]} Rh4 {[%emt 0:00:06]} 53. Rfe6 {[%emt 0:00:46]} 1-0